fUST/lending_fUST_20240906
["ID","MTS","AMOUNT","RATE_DAILY","PERIOD"]
[337327210,1725604247278,-500.0,0.00020049,2]
[337327211,1725604247288,-500.0,0.00020049,2]
[337327212,1725604247297,-500.0,0.00020049,2]
[337327213,1725604247307,-500.0,0.00020049,2]
[337327214,1725604247316,-500.0,0.00020049,2]
[337327215,1725604247325,-500.0,0.00020049,2]
[337327216,1725604247335,-500.0,0.00020049,2]
[337327217,1725604247344,-307.3271605,0.00020049,2]
[337327218,1725604247353,-500.0,0.00020049,2]
[337327219,1725604247363,-500.0,0.00020049,2]
[337327220,1725604247372,-500.0,0.00020049,2]
[337327221,1725604247382,-500.0,0.00020049,2]
[337327222,1725604247391,-500.0,0.00020049,2]
[337327223,1725604247400,-500.0,0.00020049,2]
[337327224,1725604247409,-500.0,0.00020049,2]
[337327225,1725604247418,-500.0,0.00020049,2]
[337327226,1725604247427,-690.06,0.00020049,2]
[337327227,1725604247437,-500.0,0.00020049,2]
[337327228,1725604247446,-500.0,0.00020049,2]
[337327229,1725604247455,-500.0,0.00020049,2]
[337327230,1725604247464,-500.0,0.00020049,2]
[337327231,1725604247474,-500.0,0.00020049,2]
[337327232,1725604247482,-500.0,0.00020049,2]
[337327233,1725604247492,-500.0,0.00020049,2]
[337327234,1725604247500,-500.0,0.00020049,2]
[337327235,1725604247510,-500.0,0.00020049,2]
[337327236,1725604247520,-500.0,0.00020049,2]
[337327237,1725604247530,-500.0,0.00020049,2]
[337327238,1725604247539,-503.67607789,0.00020049,2]
[337327239,1725604247548,-500.0,0.00020049,2]
[337327240,1725604247557,-500.0,0.00020049,2]
[337327241,1725604247567,-500.0,0.00020049,2]
[337327242,1725604247576,-646.37142205,0.00020049,2]
[337327243,1725604247585,-500.0,0.00020049,2]
[337327244,1725604247595,-500.0,0.00020058,2]
[337327245,1725604247604,-500.0,0.00020058,2]
[337327246,1725604247614,-500.0,0.00020058,2]
[337327247,1725604247623,-500.0,0.00020058,2]
[337327248,1725604247633,-512.97706333,0.00020058,2]
[337327249,1725604247642,-713.28,0.00020058,2]
[337327250,1725604247651,-713.28,0.00020058,2]
[337327251,1725604247660,-713.28,0.00020058,2]
[337327252,1725604247669,-713.28,0.00020058,2]
[337327253,1725604247678,-713.28,0.00020058,2]
[337327254,1725604247687,-713.28,0.00020058,2]
[337327255,1725604247695,-500.0,0.00020058,2]
[337327256,1725604247704,-713.28,0.00020059,2]
[337327257,1725604247714,-713.28,0.00020059,2]
[337327258,1725604247723,-713.28,0.00020067,2]
[337327259,1725604247733,-697.65,0.00020067,2]
[337327260,1725604247742,-697.65,0.00020067,2]
[337327261,1725604247752,-697.65,0.00020067,2]
[337327262,1725604247762,-697.65,0.00020067,2]
[337327263,1725604247774,-697.65,0.00020067,2]
[337327264,1725604247785,-697.65,0.00020067,2]
[337327265,1725604247794,-697.87889024,0.00020067,2]
[337327266,1725604247803,-713.28,0.00020068,2]
[337327267,1725604247812,-713.28,0.00020068,2]
[337327268,1725604247821,-713.28,0.00020068,2]
[337327269,1725604247830,-713.28,0.00020068,2]
[337327270,1725604247840,-713.28,0.00020069,2]
[337327271,1725604247850,-713.28,0.00020069,2]
[337327272,1725604247859,-713.28,0.0002007,2]
[337327273,1725604247869,-713.28,0.0002007,2]
[337327274,1725604247878,-235.38838712,0.00020073,2]
[337327275,1725604247887,-501.0549676,0.00020073,2]
[337327276,1725604247896,-212.08033214,0.00020073,2]
[337327277,1725604247906,-277.96767628,0.00020073,2]
[337327278,1725604247915,-500.0,0.00020073,2]
[337327279,1725604247924,-156.99552443,0.00020073,2]
[337327280,1725604247934,-279.07732929,0.00020073,2]
[337327281,1725604247943,-158.68822722,0.00020073,2]
[337327282,1725604247952,-179.02508858,0.00020073,2]
[337327283,1725604247961,-500.0,0.00020073,2]
[337327284,1725604247970,-430.53258919,0.00020073,2]
[337327285,1725604247980,-500.0,0.00020073,2]
[337327286,1725604247989,-500.0,0.00020073,2]
[337327287,1725604247999,-501.10918219,0.00020073,2]
[337327288,1725604248008,-713.28,0.00020089,2]
[337327289,1725604248017,-713.28,0.00020089,2]
[337327290,1725604248027,-713.28,0.00020089,2]
[337327291,1725604248036,-713.28,0.00020089,2]
[337327292,1725604248045,-713.40053934,0.00020089,2]
[337327293,1725604248056,-1359.97,0.00020291,2]
[337327294,1725604248065,-500.0,0.00020291,2]
[337327295,1725604248075,-1071.53,0.00020291,2]
[337327296,1725604248084,-510.69,0.00020291,2]
[337327297,1725604248093,-500.0,0.00020291,2]
[337327298,1725604248103,-500.0,0.00020291,2]
[337327299,1725604248113,-7287.96,0.00020291,2]
[337327300,1725604248123,-544.61,0.00020291,2]
[337327301,1725604248132,-1517.78,0.00020291,2]
[337327302,1725604248142,-500.0,0.00020291,2]
[337327303,1725604248152,-1810.71,0.00020291,2]
[337327304,1725604248163,-1262.41,0.00020291,2]
[337327305,1725604248172,-807.29,0.00020291,2]
[337327306,1725604248182,-500.0,0.00020291,2]
[337327307,1725604248191,-714.04,0.00020291,2]
[337327308,1725604248200,-500.0,0.00020291,2]
[337327309,1725604248209,-2424.19,0.00020291,2]
[337327310,1725604248218,-500.0,0.00020291,2]
[337327311,1725604248228,-500.0,0.00020291,2]
[337327312,1725604248237,-500.0,0.00020292,2]
[337327313,1725604248247,-500.0,0.00020292,2]
[337327314,1725604248257,-508.20528604,0.00020292,2]
[337327315,1725604248266,-500.0,0.00020292,2]
[337327316,1725604248275,-500.0,0.00020292,2]
[337327317,1725604248285,-500.0,0.00020292,2]
[337327318,1725604248294,-758.49,0.00020292,2]
[337327319,1725604248303,-526.06,0.00020292,2]
[337327320,1725604248313,-500.0,0.00020292,2]
[337327321,1725604248322,-607.59,0.00020292,2]
[337327322,1725604248331,-500.0,0.00020292,2]
[337327323,1725604248341,-500.0,0.00020292,2]
[337327324,1725604248350,-500.0,0.00020292,2]
[337327325,1725604248360,-500.0,0.00020292,2]
[337327326,1725604248369,-500.0,0.00020292,2]
[337327327,1725604248379,-500.0,0.00020292,2]
[337327328,1725604248388,-606.94,0.00020292,2]
[337327329,1725604248398,-500.0,0.00020292,2]
[337327330,1725604248407,-512.91056482,0.00020292,2]
[337327331,1725604248416,-880.9,0.00020292,2]
[337327332,1725604248426,-506.29547408,0.00020292,2]
[337327333,1725604248435,-500.0,0.00020292,2]
[337327334,1725604248444,-500.0,0.00020292,2]
[337327335,1725604248455,-501.51232267,0.00020292,2]
[337327336,1725604248464,-500.0,0.00020292,2]
[337327337,1725604248474,-512.00577619,0.00020292,2]
[337327338,1725604248483,-500.0,0.00020292,2]
[337327339,1725604248492,-500.0,0.00020292,2]
[337327340,1725604248502,-500.0,0.00020292,2]
[337327341,1725604248511,-500.00000001,0.00020292,2]
[337327342,1725604248521,-500.0,0.00020292,2]
[337327343,1725604248531,-500.0,0.00020292,2]
[337327344,1725604248541,-589.48,0.00020292,2]
[337327345,1725604248550,-500.0,0.00020292,2]
[337327346,1725604248560,-500.0,0.00020292,2]
[337327347,1725604248569,-500.0,0.00020292,2]
[337327348,1725604248579,-500.0,0.00020292,2]
[337327349,1725604248589,-723.56,0.00020292,2]
[337327350,1725604248599,-807.49,0.00020292,2]
[337327351,1725604248609,-500.0,0.00020292,2]
[337327352,1725604248618,-500.0,0.00020292,2]
[337327353,1725604248627,-500.0,0.00020292,2]
[337327354,1725604248637,-500.85881607,0.00020292,2]
[337327355,1725604248646,-500.0,0.00020292,2]
[337327356,1725604248656,-500.0,0.00020292,2]
[337327357,1725604248665,-500.0,0.00020292,2]
[337327358,1725604248675,-1376.04,0.00020292,2]
[337327359,1725604248684,-500.0,0.00020292,2]
[337327360,1725604248693,-500.0,0.00020292,2]
[337327361,1725604248703,-500.0,0.00020292,2]
[337327362,1725604248713,-1067.79,0.00020292,2]
[337327363,1725604248723,-500.0,0.00020292,2]
[337327364,1725604248732,-516.67,0.00020292,2]
[337327365,1725604248742,-1464.8,0.00020292,2]
[337327366,1725604248752,-210.53114992,0.00020292,2]
[337327367,1725604248762,-810.07,0.00020292,2]
[337327368,1725604248775,-43789.96,0.00020292,2]
[337327369,1725604248785,-905.11,0.00020292,2]
[337327370,1725604248795,-500.0,0.00020292,2]
[337327371,1725604248805,-863.57,0.00020292,2]
[337327372,1725604248814,-1239.76,0.00020292,2]
[337327373,1725604248824,-500.0,0.00020292,2]
[337327374,1725604248833,-500.0,0.00020292,2]
[337327375,1725604248843,-1006.21,0.00020292,2]
[337327376,1725604248854,-500.0,0.00020292,2]
[337327377,1725604248865,-500.0,0.00020292,2]
[337327378,1725604248874,-22804.71,0.00020292,2]
[337327379,1725604248884,-831.65,0.00020292,2]
[337327380,1725604248894,-1059.7,0.00020292,2]
[337327381,1725604248904,-500.0,0.00020292,2]
[337327382,1725604248914,-7245.79,0.00020292,2]
[337327383,1725604248924,-544.65891532,0.00020292,2]
[337327384,1725604248934,-1296.55,0.00020292,2]
[337327385,1725604248944,-937.68,0.00020292,2]
[337327386,1725604248954,-1141.17,0.00020292,2]
[337327387,1725604248963,-1240.31,0.00020292,2]
[337327388,1725604248973,-1306.01,0.00020292,2]
[337327389,1725604248983,-1288.1,0.00020292,2]
[337327390,1725604248992,-500.0,0.00020292,2]
[337327391,1725604249002,-500.0,0.00020292,2]
[337327392,1725604249011,-1780.78,0.00020292,2]
[337327393,1725604249021,-622.4,0.00020292,2]
[337327394,1725604249030,-500.0,0.00020292,2]
[337327395,1725604249039,-1873.06,0.00020292,2]
[337327396,1725604249048,-500.0,0.00020292,2]
[337327397,1725604249057,-500.0,0.00020292,2]
[337327398,1725604249067,-2434.71,0.00020292,2]
[337327399,1725604249076,-837.63,0.00020292,2]
[337327400,1725604249086,-500.0,0.00020292,2]
[337327401,1725604249095,-500.0,0.00020292,2]
[337327402,1725604249105,-500.0,0.00020292,2]
[337327403,1725604249124,-525.68,0.00020292,2]
[337327404,1725604249133,-500.0,0.00020292,2]
[337327405,1725604249142,-500.0,0.00020292,2]
[337327406,1725604249151,-500.0,0.00020292,2]
[337327407,1725604249160,-576.81,0.00020292,2]
[337327408,1725604249169,-500.0,0.00020292,2]
[337327409,1725604249178,-500.0,0.00020292,2]
[337327410,1725604249187,-500.0,0.00020292,2]
[337327411,1725604249196,-500.0,0.00020292,2]
[337327412,1725604249206,-988.54,0.00020292,2]
[337327413,1725604249216,-500.0,0.00020292,2]
[337327414,1725604249225,-615.92,0.00020292,2]
[337327415,1725604249234,-500.0,0.00020292,2]
[337327416,1725604249244,-1060.35,0.00020292,2]
[337327417,1725604249253,-599.96,0.00020292,2]
[337327418,1725604249263,-500.0,0.00020292,2]
[337327419,1725604249273,-1118.19,0.00020292,2]
[337327420,1725604249282,-500.0,0.00020292,2]
[337327421,1725604249292,-500.0,0.00020292,2]
[337327422,1725604249302,-500.0,0.00020292,2]
[337327423,1725604249312,-2193.04,0.00020292,2]
[337327424,1725604249321,-500.0,0.00020292,2]
[337327425,1725604249331,-500.0,0.00020292,2]
[337327426,1725604249340,-612.02,0.00020292,2]
[337327427,1725604249349,-106401.02,0.00020292,2]
[337327428,1725604249361,-500.0,0.00020292,2]
[337327429,1725604249371,-500.0,0.00020292,2]
[337327430,1725604249381,-500.0,0.00020292,2]
[337327431,1725604249391,-1503.83,0.00020292,2]
[337327432,1725604249401,-180.12766256,0.00020292,2]
[337327433,1725604249412,-500.0,0.00020292,2]
[337327434,1725604249421,-500.0,0.00020292,2]
[337327435,1725604249431,-500.0,0.00020292,2]
[337327436,1725604249441,-500.0,0.00020302,2]
[337327437,1725604249451,-500.0,0.00020302,2]
[337327438,1725604249461,-500.0,0.00020302,2]
[337327439,1725604249470,-500.0,0.00020302,2]
[337327440,1725604249479,-500.0,0.00020302,2]
[337327441,1725604249489,-510.85387275,0.00020302,2]
[337327442,1725604249499,-500.0,0.00020302,2]
[337327443,1725604249508,-500.0,0.00020302,2]
[337327444,1725604249518,-151.97934093,0.00020302,2]
[337327445,1725604249529,-500.0,0.00020302,2]
[337327446,1725604249539,-500.0,0.00020302,2]
[337327447,1725604249549,-525.54140889,0.00020302,2]
[337327448,1725604249558,-500.0,0.00020302,2]
[337327449,1725604249568,-422.4998611,0.00020302,2]
[337327450,1725604249577,-500.0,0.00020302,2]
[337327451,1725604249587,-501.91684956,0.00020302,2]
[337327452,1725604249597,-500.0,0.00020302,2]
[337327453,1725604249607,-506.19306859,0.00020302,2]
[337327454,1725604249617,-500.0,0.00020302,2]
[337327455,1725604249627,-500.0,0.00020302,2]
[337327456,1725604249636,-500.0,0.00020302,2]
[337327457,1725604249646,-500.0,0.00020302,2]
[337327458,1725604249656,-500.0,0.00020302,2]
[337327459,1725604249665,-500.0,0.00020302,2]
[337327460,1725604249675,-500.0,0.00020302,2]
[337327461,1725604249684,-500.0,0.00020302,2]
[337327462,1725604249694,-500.0,0.00020302,2]
[337327463,1725604249704,-500.0,0.00020302,2]
[337327464,1725604249714,-500.0,0.00020302,2]
[337327465,1725604249724,-500.0,0.00020302,2]
[337327466,1725604249734,-500.0,0.00020302,2]
[337327467,1725604249869,-592.54,0.00020302,2]
[337327468,1725604249880,-500.0,0.00020302,2]
[337327469,1725604249889,-500.0,0.00020302,2]
[337327470,1725604249899,-500.0,0.00020302,2]
[337327471,1725604249908,-200.0,0.00020302,2]
[337327472,1725604249918,-517.61406357,0.00020302,2]
[337327473,1725604249927,-500.0,0.00020302,2]
[337327474,1725604249936,-765.66,0.00020302,2]
[337327475,1725604249945,-519.66980024,0.00020302,2]
[337327476,1725604249955,-500.0,0.00020302,2]
[337327477,1725604249964,-500.0,0.00020302,2]
[337327478,1725604249974,-500.0,0.00020302,2]
[337327479,1725604249983,-500.0,0.00020302,2]
[337327480,1725604249992,-500.0,0.00020302,2]
[337327481,1725604250001,-528.28439759,0.00020302,2]
[337327482,1725604250011,-500.0,0.00020302,2]
[337327483,1725604250020,-500.0,0.00020302,2]
[337327484,1725604250029,-500.0,0.00020302,2]
[337327485,1725604250038,-500.0,0.00020302,2]
[337327486,1725604250048,-500.0,0.00020302,2]
[337327487,1725604250057,-501.83282926,0.00020302,2]
[337327488,1725604250067,-500.0,0.00020302,2]
[337327489,1725604250077,-500.0,0.00020302,2]
[337327490,1725604250086,-500.0,0.00020302,2]
[337327491,1725604250095,-500.0,0.00020302,2]
[337327492,1725604250104,-500.0,0.00020302,2]
[337327493,1725604250113,-500.0,0.00020302,2]
[337327494,1725604250123,-500.0,0.00020302,2]
[337327495,1725604250131,-500.0,0.00020302,2]
[337327496,1725604250140,-500.0,0.00020302,2]
[337327497,1725604250150,-500.0,0.00020302,2]
[337327498,1725604250158,-363.44721898,0.00020302,2]
[337327499,1725604250168,-500.0,0.00020302,2]
[337327500,1725604250177,-500.0,0.00020302,2]
[337327501,1725604250187,-552.22032543,0.00020302,2]
[337327502,1725604250196,-500.0,0.00020302,2]
[337327503,1725604250205,-500.0,0.00020302,2]
[337327504,1725604250214,-500.0,0.00020302,2]
[337327505,1725604250223,-500.0,0.00020302,2]
[337327506,1725604250233,-500.0,0.00020302,2]
[337327507,1725604250242,-500.0,0.00020302,2]
[337327508,1725604250252,-500.0,0.00020302,2]
[337327509,1725604250261,-500.0,0.00020302,2]
[337327510,1725604250272,-500.0,0.00020302,2]
[337327511,1725604250282,-500.0,0.00020302,2]
[337327512,1725604250291,-500.0,0.00020302,2]
[337327513,1725604250301,-500.0,0.00020302,2]
[337327514,1725604250310,-500.0,0.00020302,2]
[337327515,1725604250319,-500.0,0.00020302,2]
[337327516,1725604250328,-407.01833118,0.00020302,2]
[337327517,1725604250338,-500.0,0.00020302,2]
[337327518,1725604250347,-500.0,0.00020302,2]
[337327519,1725604250356,-500.0,0.00020302,2]
[337327520,1725604250366,-500.0,0.00020302,2]
[337327521,1725604250376,-500.0,0.00020302,2]
[337327522,1725604250385,-500.0,0.00020302,2]
[337327523,1725604250394,-196.48896559,0.00020302,2]
[337327524,1725604250403,-500.0,0.00020302,2]
[337327525,1725604250413,-1492.96,0.00020302,2]
[337327526,1725604250422,-500.0,0.00020302,2]
[337327527,1725604250431,-674.67,0.00020302,2]
[337327528,1725604250440,-500.0,0.00020302,2]
[337327529,1725604250449,-500.0,0.00020302,2]
[337327530,1725604250459,-500.0,0.00020302,2]
[337327531,1725604250468,-500.0,0.00020302,2]
[337327532,1725604250478,-500.0,0.00020302,2]
[337327533,1725604250487,-500.0,0.00020302,2]
[337327534,1725604250496,-500.0,0.00020302,2]
[337327535,1725604250505,-500.0,0.00020302,2]
[337327536,1725604250514,-500.0,0.00020302,2]
[337327537,1725604250524,-475.74077969,0.00020302,2]
[337327538,1725604250533,-500.0,0.00020302,2]
[337327539,1725604250543,-500.0,0.00020302,2]
[337327540,1725604250552,-512.41377475,0.00020302,2]
[337327541,1725604250561,-500.0,0.00020302,2]
[337327542,1725604250571,-175.41172744,0.00020302,2]
[337327543,1725604250580,-513.01833812,0.00020302,2]
[337327544,1725604250589,-340.03205591,0.00020302,2]
[337327545,1725604250598,-500.0,0.00020302,2]
[337327546,1725604250607,-500.0,0.00020302,2]
[337327547,1725604250618,-500.0,0.00020302,2]
[337327548,1725604250627,-403.37758823,0.00020302,2]
[337327549,1725604250636,-500.0,0.00020302,2]
[337327550,1725604250645,-500.0,0.00020302,2]
[337327551,1725604250654,-514.74506261,0.00020302,2]
[337327552,1725604250663,-500.0,0.00020302,2]
[337327553,1725604250672,-500.0,0.00020302,2]
[337327554,1725604250682,-500.0,0.00020302,2]
[337327555,1725604250691,-500.0,0.00020302,2]
[337327556,1725604250700,-509.05,0.00020302,2]
[337327557,1725604250709,-549.85,0.00020302,2]
[337327558,1725604250719,-500.0,0.00020302,2]
[337327559,1725604250728,-500.0,0.00020302,2]
[337327560,1725604250738,-500.0,0.00020302,2]
[337327561,1725604250748,-544.37234125,0.00020302,2]
[337327562,1725604250757,-500.0,0.00020302,2]
[337327563,1725604250768,-500.0,0.00020302,2]
[337327564,1725604250780,-500.0,0.00020302,2]
[337327565,1725604250789,-500.0,0.00020302,2]
[337327566,1725604250798,-500.0,0.00020302,2]
[337327567,1725604250807,-500.0,0.00020302,2]
[337327568,1725604250817,-500.0,0.00020302,2]
[337327569,1725604250827,-500.0,0.00020302,2]
[337327570,1725604250836,-575.1889327,0.00020302,2]
[337327571,1725604250846,-500.0,0.00020302,2]
[337327572,1725604250857,-500.0,0.00020302,2]
[337327573,1725604250868,-500.0,0.00020302,2]
[337327574,1725604250879,-500.0,0.00020302,2]
[337327575,1725604250888,-500.0,0.00020302,2]
[337327576,1725604250897,-500.0,0.00020302,2]
[337327577,1725604250906,-500.0,0.00020302,2]
[337327578,1725604250915,-500.0,0.00020302,2]
[337327579,1725604250924,-500.0,0.00020302,2]
[337327580,1725604250934,-510.17814261,0.00020302,2]
[337327581,1725604250944,-500.0,0.00020302,2]
[337327582,1725604250953,-500.0,0.00020302,2]
[337327583,1725604250962,-500.0,0.00020302,2]
[337327584,1725604250972,-500.0,0.00020302,2]
[337327585,1725604250981,-500.0,0.00020302,2]
[337327586,1725604250990,-500.0,0.00020302,2]
[337327587,1725604251000,-500.0,0.00020302,2]
[337327588,1725604251009,-500.0,0.00020302,2]
[337327589,1725604251018,-500.0,0.00020302,2]
[337327590,1725604251027,-500.0,0.00020302,2]
[337327591,1725604251036,-500.0,0.00020302,2]
[337327592,1725604251045,-500.0,0.00020302,2]
[337327593,1725604251054,-500.0,0.00020302,2]
[337327594,1725604251064,-560.55232548,0.00020302,2]
[337327595,1725604251073,-198.65665816,0.00020302,2]
[337327596,1725604251082,-511.04716829,0.00020302,2]
[337327597,1725604251091,-251.88415436,0.00020302,2]
[337327598,1725604251100,-500.0,0.00020302,2]
[337327599,1725604251110,-463.24895093,0.00020302,2]
[337327600,1725604251120,-500.0,0.00020302,2]
[337327601,1725604251129,-500.0,0.00020302,2]
[337327602,1725604251139,-500.0,0.00020302,2]
[337327603,1725604251148,-500.0,0.00020302,2]
[337327604,1725604251159,-500.0,0.00020302,2]
[337327605,1725604251167,-500.0,0.00020302,2]
[337327606,1725604251177,-500.0,0.00020302,2]
[337327607,1725604251186,-500.0,0.00020302,2]
[337327608,1725604251195,-500.0,0.00020302,2]
[337327609,1725604251204,-500.0,0.00020302,2]
[337327610,1725604251213,-500.0,0.00020302,2]
[337327611,1725604251222,-500.0,0.00020302,2]
[337327612,1725604251232,-500.0,0.00020302,2]
[337327613,1725604251241,-500.0,0.00020302,2]
[337327614,1725604251250,-500.0,0.00020302,2]
[337327615,1725604251259,-500.0,0.00020302,2]
[337327616,1725604251268,-500.0,0.00020302,2]
[337327617,1725604251278,-500.0,0.00020302,2]
[337327618,1725604251287,-500.0,0.00020302,2]
[337327619,1725604251298,-500.0,0.00020302,2]
[337327620,1725604251308,-500.0,0.00020302,2]
[337327621,1725604251317,-500.0,0.00020302,2]
[337327622,1725604251326,-500.0,0.00020302,2]
[337327623,1725604251335,-500.0,0.00020302,2]
[337327624,1725604251344,-500.0,0.00020302,2]
[337327625,1725604251354,-500.0,0.00020302,2]
[337327626,1725604251363,-500.0,0.00020302,2]
[337327627,1725604251372,-458.70263392,0.00020302,2]
[337327628,1725604251382,-638.69119518,0.00020302,2]
[337327629,1725604251391,-500.0,0.00020302,2]
[337327630,1725604251400,-500.0,0.00020302,2]
[337327631,1725604251410,-500.0,0.00020302,2]
[337327632,1725604251419,-500.0,0.00020302,2]
[337327633,1725604251428,-500.0,0.00020302,2]
[337327634,1725604251437,-500.0,0.00020302,2]
[337327635,1725604251447,-500.0,0.00020302,2]
[337327636,1725604251456,-500.0,0.00020302,2]
[337327637,1725604251465,-505.09682914,0.00020302,2]
[337327638,1725604251475,-502.65877379,0.00020302,2]
[337327639,1725604251484,-500.0,0.00020302,2]
[337327640,1725604251494,-500.0,0.00020302,2]
[337327641,1725604251503,-500.0,0.00020302,2]
[337327642,1725604251512,-500.0,0.00020302,2]
[337327643,1725604251521,-500.0,0.00020302,2]
[337327644,1725604251531,-500.0,0.00020302,2]
[337327645,1725604251540,-555.9844036,0.00020302,2]
[337327646,1725604251550,-500.0,0.00020302,2]
[337327647,1725604251560,-500.0,0.00020302,2]
[337327648,1725604251570,-500.0,0.00020302,2]
[337327649,1725604251579,-500.0,0.00020302,2]
[337327650,1725604251589,-500.0,0.00020302,2]
[337327651,1725604251599,-500.0,0.00020302,2]
[337327652,1725604251610,-500.0,0.00020302,2]
[337327653,1725604251620,-502.99350801,0.00020302,2]
[337327654,1725604251630,-500.0,0.00020302,2]
[337327655,1725604251640,-500.0,0.00020302,2]
[337327656,1725604251649,-500.0,0.00020302,2]
[337327657,1725604251660,-500.0,0.00020302,2]
[337327658,1725604251669,-500.0,0.00020302,2]
[337327659,1725604251678,-500.0,0.00020302,2]
[337327660,1725604251688,-500.0,0.00020302,2]
[337327661,1725604251698,-500.0,0.00020302,2]
[337327662,1725604251708,-500.0,0.00020302,2]
[337327663,1725604251718,-500.0,0.00020302,2]
[337327664,1725604251728,-500.0,0.00020302,2]
[337327665,1725604251738,-586.96,0.00020302,2]
[337327666,1725604251747,-500.0,0.00020302,2]
[337327667,1725604251756,-500.0,0.00020302,2]
[337327668,1725604251766,-506.67040624,0.00020302,2]
[337327669,1725604251779,-504.4193382,0.00020302,2]
[337327670,1725604251789,-500.0,0.00020302,2]
[337327671,1725604251799,-500.0,0.00020302,2]
[337327672,1725604251809,-514.71074449,0.00020302,2]
[337327673,1725604251819,-500.0,0.00020302,2]
[337327674,1725604251828,-500.0,0.00020302,2]
[337327675,1725604251838,-500.0,0.00020302,2]
[337327676,1725604251848,-500.0,0.00020302,2]
[337327677,1725604251858,-200.3738183,0.00020302,2]
[337327678,1725604251868,-500.0,0.00020302,2]
[337327679,1725604251877,-500.0,0.00020302,2]
[337327680,1725604251887,-500.0,0.00020302,2]
[337327681,1725604251896,-500.0,0.00020302,2]
[337327682,1725604251906,-500.0,0.00020302,2]
[337327683,1725604251915,-500.0,0.00020302,2]
[337327684,1725604251926,-500.0,0.00020302,2]
[337327685,1725604251937,-500.0,0.00020302,2]
[337327686,1725604251947,-500.0,0.00020302,2]
[337327687,1725604251956,-504.74871431,0.00020302,2]
[337327688,1725604251965,-500.0,0.00020302,2]
[337327689,1725604251975,-500.0,0.00020303,2]
[337327690,1725604251984,-500.0,0.00020303,2]
[337327691,1725604251993,-500.0,0.00020303,2]
[337327692,1725604252002,-1228.05,0.00020303,2]
[337327693,1725604252012,-675.55,0.00020303,2]
[337327694,1725604252022,-500.0,0.00020303,2]
[337327695,1725604252032,-1196.55,0.00020303,2]
[337327696,1725604252041,-1487.04,0.00020303,2]
[337327697,1725604252051,-500.0,0.00020303,2]
[337327698,1725604252060,-500.0,0.00020303,2]
[337327699,1725604252070,-500.0,0.00020303,2]
[337327700,1725604252080,-500.0,0.00020303,2]
[337327701,1725604252089,-500.0,0.00020303,2]
[337327702,1725604252099,-500.0,0.00020303,2]
[337327703,1725604252109,-753.75,0.00020303,2]
[337327704,1725604252119,-500.0,0.00020303,2]
[337327705,1725604252128,-500.0,0.00020303,2]
[337327706,1725604252138,-500.0,0.00020303,2]
[337327707,1725604252148,-274.1129374,0.00020303,2]
[337327708,1725604252157,-500.0,0.00020303,2]
[337327709,1725604252167,-500.0,0.00020303,2]